[Event "Early-Titled-Tuesday-Blitz-June-18-2024"]
[Site "Chess.com"]
[Date "2024.06.18"]
[Round "2"]
[White "IndianSchoolOfSuffering"]
[Black "FishThatRoared"]
[Result "1-0"]
[WhiteElo "2504"]
[BlackElo "2253"]
[TimeControl "180+1"]
[EndTime "8:17:29 PDT"]
[Termination "IndianSchoolOfSuffering won on time"]

1. e4 {[%clk 0:03:00.9]} 1... c5 {[%clk 0:02:58.8]} 2. Nf3 {[%clk 0:02:58.6]}
2... d6 {[%clk 0:02:59]} 3. d4 {[%clk 0:02:57.2]} 3... cxd4 {[%clk 0:02:59.9]}
4. Nxd4 {[%clk 0:02:56.4]} 4... Nf6 {[%clk 0:03:00.2]} 5. Nc3 {[%clk 0:02:55.5]}
5... a6 {[%clk 0:03:00.8]} 6. Be3 {[%clk 0:02:52.6]} 6... e6 {[%clk 0:03:00.8]}
7. g4 {[%clk 0:02:51.2]} 7... b5 {[%clk 0:02:58]} 8. g5 {[%clk 0:02:51.1]} 8...
Nfd7 {[%clk 0:02:58]} 9. h4 {[%clk 0:02:51.2]} 9... Bb7 {[%clk 0:02:56.5]} 10.
a3 {[%clk 0:02:49.3]} 10... Be7 {[%clk 0:02:42.7]} 11. Bh3 {[%clk 0:02:42.3]}
11... Ne5 {[%clk 0:02:32.5]} 12. Rg1 {[%clk 0:02:37.6]} 12... Qc8 {[%clk
0:02:24.3]} 13. h5 {[%clk 0:02:30.9]} 13... Nbd7 {[%clk 0:02:18.4]} 14. Bxe6
{[%clk 0:02:07.8]} 14... fxe6 {[%clk 0:02:13.4]} 15. Nxe6 {[%clk 0:02:07.8]}
15... Rg8 {[%clk 0:01:51.5]} 16. Nd5 {[%clk 0:01:58.4]} 16... Bd8 {[%clk
0:01:28.9]} 17. f4 {[%clk 0:01:52.3]} 17... Nc4 {[%clk 0:01:26.8]} 18. Bd4
{[%clk 0:01:52.2]} 18... Bxd5 {[%clk 0:01:19.3]} 19. exd5 {[%clk 0:01:51.8]}
19... Qb7 {[%clk 0:01:14.4]} 20. Nxg7+ {[%clk 0:01:42.6]} 20... Rxg7 {[%clk
0:01:04.6]} 21. Bxg7 {[%clk 0:01:42.7]} 21... Kf7 {[%clk 0:00:53.6]} 22. Bc3
{[%clk 0:01:40.4]} 22... Bb6 {[%clk 0:00:50.9]} 23. g6+ {[%clk 0:01:39.9]} 23...
Kf8 {[%clk 0:00:44.1]} 24. gxh7 {[%clk 0:01:35.4]} 24... Re8+ {[%clk 0:00:36.4]}
25. Be5 {[%clk 0:01:23.9]} 25... Bxg1 {[%clk 0:00:24.3]} 26. h8=Q+ {[%clk
0:01:23.1]} 26... Ke7 {[%clk 0:00:24.1]} 27. Qg7+ {[%clk 0:01:12.1]} 27... Kd8
{[%clk 0:00:24]} 28. Qdg4 {[%clk 0:01:08.2]} 28... Ndxe5 {[%clk 0:00:13.6]} 29.
Q4g5+ {[%clk 0:01:00.6]} 29... Kc8 {[%clk 0:00:12.7]} 30. Qxb7+ {[%clk
0:01:00.4]} 30... Kxb7 {[%clk 0:00:12.1]} 31. O-O-O {[%clk 0:00:58.7]} 31...
Be3+ {[%clk 0:00:11.1]} 32. Kb1 {[%clk 0:00:57.1]} 32... Nd7 {[%clk 0:00:10.9]}
33. h6 {[%clk 0:00:53.3]} 1-0

[Event "Early-Titled-Tuesday-Blitz-June-18-2024"]
[Site "Chess.com"]
[Date "2024.06.18"]
[Round "2"]
[White "cycygogne"]
[Black "rookpower2004"]
[Result "1-0"]
[WhiteElo "2203"]
[BlackElo "2464"]
[TimeControl "180+1"]
[EndTime "8:17:29 PDT"]
[Termination "cycygogne won on time"]

1. e4 {[%clk 0:03:00.9]} 1... e5 {[%clk 0:02:58.5]} 2. Nf3 {[%clk 0:03:00.9]}
2... Nc6 {[%clk 0:02:58.9]} 3. Bc4 {[%clk 0:03:01.1]} 3... Bc5 {[%clk
0:02:59.4]} 4. b4 {[%clk 0:03:01.3]} 4... Bxb4 {[%clk 0:02:57.8]} 5. c3 {[%clk
0:03:01.5]} 5... Ba5 {[%clk 0:02:58.2]} 6. d4 {[%clk 0:03:01.5]} 6... d6 {[%clk
0:02:25.3]} 7. O-O {[%clk 0:03:00.4]} 7... Bg4 {[%clk 0:02:22.6]} 8. Qb3 {[%clk
0:02:57.2]} 8... Bxf3 {[%clk 0:02:15.6]} 9. gxf3 {[%clk 0:02:57.4]} 9... Qd7
{[%clk 0:02:11.8]} 10. d5 {[%clk 0:02:41.9]} 10... Nd8 {[%clk 0:02:07.9]} 11.
Bg5 {[%clk 0:02:28.9]} 11... Ne7 {[%clk 0:02:01.8]} 12. Nd2 {[%clk 0:02:20.5]}
12... h6 {[%clk 0:01:52.2]} 13. Bxe7 {[%clk 0:02:10.9]} 13... Kxe7 {[%clk
0:01:43.8]} 14. Kh1 {[%clk 0:02:05.7]} 14... Bb6 {[%clk 0:01:38]} 15. Bb5 {[%clk
0:01:56.6]} 15... c6 {[%clk 0:01:18.9]} 16. dxc6 {[%clk 0:01:55.9]} 16... bxc6
{[%clk 0:01:17.6]} 17. Bc4 {[%clk 0:01:55.9]} 17... Rb8 {[%clk 0:01:09.1]} 18.
Qc2 {[%clk 0:01:48.2]} 18... Ne6 {[%clk 0:01:05.8]} 19. Bxe6 {[%clk 0:01:47.3]}
19... Qxe6 {[%clk 0:01:05.4]} 20. Qd3 {[%clk 0:01:37.2]} 20... Rhd8 {[%clk
0:00:28.7]} 21. Nc4 {[%clk 0:01:36.4]} 21... Bc5 {[%clk 0:00:26]} 22. Ne3 {[%clk
0:01:34.8]} 22... Kf8 {[%clk 0:00:25.3]} 23. Rg1 {[%clk 0:01:32.5]} 23... Bxe3
{[%clk 0:00:22]} 24. Qxe3 {[%clk 0:01:27.2]} 24... Rd7 {[%clk 0:00:22.5]} 25.
Rg3 {[%clk 0:01:22.1]} 25... Rb2 {[%clk 0:00:19.6]} 26. Rag1 {[%clk 0:01:21.9]}
26... f6 {[%clk 0:00:15.3]} 27. a4 {[%clk 0:01:21.5]} 27... Ra2 {[%clk
0:00:14.5]} 28. Rg6 {[%clk 0:01:15.9]} 28... Rxa4 {[%clk 0:00:09.2]} 29. Rxh6
{[%clk 0:01:14.7]} 29... gxh6 {[%clk 0:00:06.2]} 30. Qxh6+ {[%clk 0:01:15.6]}
30... Ke7 {[%clk 0:00:06.4]} 31. Qh8 {[%clk 0:01:08.8]} 31... Qf7 {[%clk
0:00:02.9]} 32. Rg7 {[%clk 0:01:08.2]} 32... Ra1+ {[%clk 0:00:02.4]} 33. Kg2
{[%clk 0:01:07.9]} 33... Ke6 {[%clk 0:00:01.6]} 34. Qh3+ {[%clk 0:01:05.1]} 1-0

[Event "Early-Titled-Tuesday-Blitz-June-18-2024"]
[Site "Chess.com"]
[Date "2024.06.18"]
[Round "2"]
[White "GMG"]
[Black "cthulhuuu"]
[Result "1-0"]
[WhiteElo "2724"]
[BlackElo "2350"]
[TimeControl "180+1"]
[EndTime "8:17:31 PDT"]
[Termination "GMG won by checkmate"]

1. d4 {[%clk 0:03:00.9]} 1... Nf6 {[%clk 0:02:59.9]} 2. g3 {[%clk 0:03:00.9]}
2... g6 {[%clk 0:03:00.1]} 3. Bg2 {[%clk 0:03:01.2]} 3... Bg7 {[%clk 0:03:00.8]}
4. c4 {[%clk 0:03:01.8]} 4... O-O {[%clk 0:03:01.5]} 5. Nc3 {[%clk 0:03:02.3]}
5... d6 {[%clk 0:03:02.2]} 6. Nf3 {[%clk 0:03:02.8]} 6... c5 {[%clk 0:03:03]} 7.
O-O {[%clk 0:03:02.7]} 7... cxd4 {[%clk 0:03:03.9]} 8. Nxd4 {[%clk 0:03:03.3]}
8... Qa5 {[%clk 0:03:04.5]} 9. e3 {[%clk 0:02:50.8]} 9... Nc6 {[%clk 0:03:03.6]}
10. h3 {[%clk 0:02:42.7]} 10... Ne5 {[%clk 0:03:01.7]} 11. Qe2 {[%clk
0:02:26.2]} 11... Qb4 {[%clk 0:02:57.6]} 12. Nd5 {[%clk 0:02:25.8]} 12... Nxd5
{[%clk 0:02:56]} 13. cxd5 {[%clk 0:02:26.7]} 13... Bd7 {[%clk 0:02:47.3]} 14. b3
{[%clk 0:02:21.9]} 14... g5 {[%clk 0:01:16]} 15. Bb2 {[%clk 0:02:16.3]} 15...
Rac8 {[%clk 0:01:12.4]} 16. Rad1 {[%clk 0:02:12.9]} 16... a5 {[%clk 0:01:07]}
17. f4 {[%clk 0:02:09.9]} 17... gxf4 {[%clk 0:00:59.5]} 18. exf4 {[%clk
0:02:10.8]} 18... Ng6 {[%clk 0:00:59.1]} 19. Kh2 {[%clk 0:01:48.9]} 19... a4
{[%clk 0:00:57.2]} 20. a3 {[%clk 0:01:48.2]} 20... Qb6 {[%clk 0:00:51.4]} 21. b4
{[%clk 0:01:48.3]} 21... Bb5 {[%clk 0:00:27.8]} 22. Nxb5 {[%clk 0:01:41.2]}
22... Bxb2 {[%clk 0:00:27.7]} 23. Nxd6 {[%clk 0:01:28]} 23... exd6 {[%clk
0:00:26.4]} 24. Qxb2 {[%clk 0:01:27.4]} 24... Rfe8 {[%clk 0:00:22.2]} 25. h4
{[%clk 0:01:24.8]} 25... Re3 {[%clk 0:00:20.2]} 26. h5 {[%clk 0:01:19.7]} 26...
Ne7 {[%clk 0:00:14.5]} 27. Qf6 {[%clk 0:01:14.2]} 27... Rcc3 {[%clk 0:00:05.5]}
28. h6 {[%clk 0:01:06.8]} 28... Kf8 {[%clk 0:00:05.7]} 29. Qh8+ {[%clk 0:01:05]}
29... Ng8 {[%clk 0:00:05.8]} 30. Qg7+ {[%clk 0:01:04.8]} 30... Ke7 {[%clk
0:00:06.1]} 31. Qxg8 {[%clk 0:01:04.7]} 31... Rxg3 {[%clk 0:00:06.6]} 32. Rfe1+
{[%clk 0:01:04.5]} 32... Kf6 {[%clk 0:00:03]} 33. Re6+ {[%clk 0:00:59.5]} 33...
fxe6 {[%clk 0:00:02.9]} 34. Qxe6# {[%clk 0:01:00.4]} 1-0

[Event "Early-Titled-Tuesday-Blitz-June-18-2024"]
[Site "Chess.com"]
[Date "2024.06.18"]
[Round "2"]
[White "Seppppppy"]
[Black "Naruto75_3"]
[Result "0-1"]
[WhiteElo "2192"]
[BlackElo "2480"]
[TimeControl "180+1"]
[EndTime "8:17:31 PDT"]
[Termination "Naruto75_3 won by resignation"]

1. d4 {[%clk 0:03:00.9]} 1... d5 {[%clk 0:02:59.5]} 2. c4 {[%clk 0:03:00.6]}
2... c6 {[%clk 0:02:59.2]} 3. Nc3 {[%clk 0:03:00.6]} 3... Nf6 {[%clk 0:02:58.9]}
4. Nf3 {[%clk 0:02:54.1]} 4... e6 {[%clk 0:02:57.2]} 5. Bg5 {[%clk 0:02:53.2]}
5... dxc4 {[%clk 0:02:56.1]} 6. e4 {[%clk 0:02:53]} 6... b5 {[%clk 0:02:55.9]}
7. e5 {[%clk 0:02:52.6]} 7... h6 {[%clk 0:02:55.3]} 8. Bh4 {[%clk 0:02:49.1]}
8... g5 {[%clk 0:02:52]} 9. Nxg5 {[%clk 0:02:49.1]} 9... hxg5 {[%clk 0:02:52.9]}
10. Bxg5 {[%clk 0:02:49.2]} 10... Nbd7 {[%clk 0:02:52.2]} 11. exf6 {[%clk
0:02:46.1]} 11... Bb7 {[%clk 0:02:49.8]} 12. Qf3 {[%clk 0:02:44.4]} 12... Qb6
{[%clk 0:02:48.1]} 13. Be2 {[%clk 0:02:29.7]} 13... O-O-O {[%clk 0:02:46.3]} 14.
a4 {[%clk 0:02:20.1]} 14... a6 {[%clk 0:02:44.2]} 15. h4 {[%clk 0:02:03.8]}
15... Bb4 {[%clk 0:02:41]} 16. O-O {[%clk 0:02:00.6]} 16... Rhg8 {[%clk
0:02:21.2]} 17. Ne4 {[%clk 0:01:57.2]} 17... c5 {[%clk 0:02:15.3]} 18. axb5
{[%clk 0:01:45.2]} 18... axb5 {[%clk 0:02:08.1]} 19. Bf4 {[%clk 0:01:40.6]}
19... cxd4 {[%clk 0:01:58]} 20. Rfc1 {[%clk 0:00:58.8]} 20... Nc5 {[%clk
0:01:46.7]} 21. Bxc4 {[%clk 0:00:25.6]} 21... Bxe4 {[%clk 0:01:40.9]} 22. Bxe6+
{[%clk 0:00:24.6]} 22... Qxe6 {[%clk 0:01:33.4]} 23. Qh5 {[%clk 0:00:22.6]}
23... Qd5 {[%clk 0:01:16.3]} 24. Bg5 {[%clk 0:00:13.6]} 24... Kb7 {[%clk
0:01:12.3]} 25. f3 {[%clk 0:00:08.2]} 25... Bf5 {[%clk 0:01:07.2]} 26. Rd1
{[%clk 0:00:06.4]} 26... d3 {[%clk 0:01:05.3]} 27. Rac1 {[%clk 0:00:05.7]} 27...
Nb3 {[%clk 0:01:01.6]} 28. Rc3 {[%clk 0:00:02.2]} 28... Bxc3 {[%clk 0:01:00.8]}
29. bxc3 {[%clk 0:00:03.1]} 29... d2 {[%clk 0:01:00.2]} 30. Bxd2 {[%clk
0:00:02.8]} 30... Nxd2 {[%clk 0:00:59.3]} 31. Rxd2 {[%clk 0:00:03.3]} 31... Qxd2
{[%clk 0:00:59.9]} 32. Qxf7+ {[%clk 0:00:03.4]} 32... Kb6 {[%clk 0:00:58.8]} 0-1

[Event "Early-Titled-Tuesday-Blitz-June-18-2024"]
[Site "Chess.com"]
[Date "2024.06.18"]
[Round "2"]
[White "KarlEmilElmer"]
[Black "Rosh1610"]
[Result "1-0"]
[WhiteElo "2267"]
[BlackElo "2463"]
[TimeControl "180+1"]
[EndTime "8:17:31 PDT"]
[Termination "KarlEmilElmer won by checkmate"]

1. d4 {[%clk 0:03:00.9]} 1... Nf6 {[%clk 0:02:58.8]} 2. c4 {[%clk 0:03:00.5]}
2... e6 {[%clk 0:02:45.4]} 3. Nc3 {[%clk 0:03:00.1]} 3... Bb4 {[%clk 0:02:45.9]}
4. Bg5 {[%clk 0:03:00.4]} 4... c5 {[%clk 0:02:44.6]} 5. Nf3 {[%clk 0:02:59.4]}
5... Nc6 {[%clk 0:02:40]} 6. d5 {[%clk 0:02:55.4]} 6... Ne7 {[%clk 0:02:39.2]}
7. Bxf6 {[%clk 0:02:34.8]} 7... gxf6 {[%clk 0:02:40.1]} 8. e4 {[%clk 0:02:22.7]}
8... Bxc3+ {[%clk 0:02:31.9]} 9. bxc3 {[%clk 0:02:22.6]} 9... d6 {[%clk
0:02:32.8]} 10. Bd3 {[%clk 0:02:16.6]} 10... e5 {[%clk 0:02:33]} 11. Nh4 {[%clk
0:02:10.7]} 11... Ng6 {[%clk 0:02:31.5]} 12. Nxg6 {[%clk 0:01:22.3]} 12... fxg6
{[%clk 0:02:32.4]} 13. Qf3 {[%clk 0:01:08.5]} 13... O-O {[%clk 0:02:29.6]} 14.
h4 {[%clk 0:01:07.4]} 14... f5 {[%clk 0:02:26.4]} 15. h5 {[%clk 0:01:01.2]}
15... fxe4 {[%clk 0:02:25.3]} 16. Qxe4 {[%clk 0:00:59.5]} 16... Bf5 {[%clk
0:02:25.3]} 17. Qe3 {[%clk 0:00:56.5]} 17... Bxd3 {[%clk 0:02:25.4]} 18. Qxd3
{[%clk 0:00:56.3]} 18... Qg5 {[%clk 0:02:21.7]} 19. hxg6 {[%clk 0:00:52.9]}
19... hxg6 {[%clk 0:02:22.6]} 20. Qh3 {[%clk 0:00:50.8]} 20... Kf7 {[%clk
0:02:07.9]} 21. Qd7+ {[%clk 0:00:33.8]} 21... Kf6 {[%clk 0:02:01.3]} 22. Rh7
{[%clk 0:00:20.4]} 22... Rae8 {[%clk 0:01:48.5]} 23. Qxd6+ {[%clk 0:00:20]}
23... Kf5 {[%clk 0:01:48.4]} 24. Qd7+ {[%clk 0:00:19.8]} 24... Ke4 {[%clk
0:01:46.9]} 25. Rh3 {[%clk 0:00:17.1]} 25... Qxg2 {[%clk 0:01:40.6]} 26. Re3+
{[%clk 0:00:16.7]} 26... Kf4 {[%clk 0:01:40.4]} 27. O-O-O {[%clk 0:00:14.8]}
27... Qxf2 {[%clk 0:01:36.6]} 28. Red3 {[%clk 0:00:13.8]} 28... e4 {[%clk
0:01:25.8]} 29. R3d2 {[%clk 0:00:13.1]} 29... Qf3 {[%clk 0:01:25.7]} 30. Qd6+
{[%clk 0:00:11.6]} 30... Kf5 {[%clk 0:01:25.5]} 31. Qh2 {[%clk 0:00:09.5]} 31...
Qxc3+ {[%clk 0:01:24.5]} 32. Rc2 {[%clk 0:00:09.2]} 32... Qe3+ {[%clk
0:01:19.9]} 33. Kb1 {[%clk 0:00:08.8]} 33... Kf6 {[%clk 0:01:09.1]} 34. Rh1
{[%clk 0:00:07.2]} 34... Rh8 {[%clk 0:01:07.4]} 35. Rf2+ {[%clk 0:00:06.5]}
35... Kg7 {[%clk 0:01:07]} 36. Qc7+ {[%clk 0:00:06.4]} 36... Kg8 {[%clk
0:01:01.6]} 37. Qf7# {[%clk 0:00:06.1]} 1-0

[Event "Early-Titled-Tuesday-Blitz-June-18-2024"]
[Site "Chess.com"]
[Date "2024.06.18"]
[Round "2"]
[White "Dolphin_2010"]
[Black "Defenstrator"]
[Result "1-0"]
[WhiteElo "2743"]
[BlackElo "2399"]
[TimeControl "180+1"]
[EndTime "8:17:34 PDT"]
[Termination "Dolphin_2010 won by resignation"]

1. d4 {[%clk 0:03:00.9]} 1... e6 {[%clk 0:02:58.9]} 2. c4 {[%clk 0:03:00.4]}
2... d5 {[%clk 0:02:58.2]} 3. Nc3 {[%clk 0:02:58.9]} 3... c5 {[%clk 0:02:57.6]}
4. cxd5 {[%clk 0:02:58.4]} 4... cxd4 {[%clk 0:02:53.7]} 5. Qxd4 {[%clk
0:02:54.2]} 5... Nc6 {[%clk 0:02:48.3]} 6. Qe3 {[%clk 0:02:42.7]} 6... Nb4
{[%clk 0:02:42.8]} 7. Qd2 {[%clk 0:02:38.2]} 7... exd5 {[%clk 0:02:23.9]} 8. a3
{[%clk 0:02:35.8]} 8... Nc6 {[%clk 0:02:24.5]} 9. Nxd5 {[%clk 0:02:21.1]} 9...
Be6 {[%clk 0:02:11.3]} 10. e4 {[%clk 0:02:17]} 10... Nf6 {[%clk 0:02:06.7]} 11.
Nxf6+ {[%clk 0:01:56.5]} 11... Qxf6 {[%clk 0:02:06.7]} 12. Nf3 {[%clk
0:01:56.3]} 12... Rd8 {[%clk 0:01:45.2]} 13. Qc2 {[%clk 0:01:30.8]} 13... Bg4
{[%clk 0:01:24.2]} 14. Bg5 {[%clk 0:01:12.9]} 14... Qg6 {[%clk 0:01:09.9]} 15.
Bxd8 {[%clk 0:01:11.8]} 15... Kxd8 {[%clk 0:01:00.2]} 16. Bb5 {[%clk 0:01:11.1]}
16... Bxf3 {[%clk 0:00:53.2]} 17. gxf3 {[%clk 0:01:12]} 17... Be7 {[%clk
0:00:40.3]} 18. O-O-O+ {[%clk 0:01:03.3]} 18... Kc7 {[%clk 0:00:40.8]} 19. Kb1
{[%clk 0:00:56.5]} 19... Bf6 {[%clk 0:00:33.1]} 20. Qa4 {[%clk 0:00:36.2]} 20...
Ra8 {[%clk 0:00:13.1]} 21. Bxc6 {[%clk 0:00:32.5]} 21... bxc6 {[%clk 0:00:13.5]}
22. Qa5+ {[%clk 0:00:32.9]} 22... Kc8 {[%clk 0:00:13.6]} 23. Rd6 {[%clk
0:00:32.1]} 23... Qh5 {[%clk 0:00:10.4]} 24. Qxh5 {[%clk 0:00:26.2]} 1-0

[Event "Early-Titled-Tuesday-Blitz-June-18-2024"]
[Site "Chess.com"]
[Date "2024.06.18"]
[Round "2"]
[White "ejalmedina"]
[Black "KorolDimitriy75"]
[Result "1/2-1/2"]
[WhiteElo "2314"]
[BlackElo "2516"]
[TimeControl "180+1"]
[EndTime "8:17:35 PDT"]
[Termination "Game drawn by repetition"]

1. d4 {[%clk 0:03:00.9]} 1... Nf6 {[%clk 0:02:59.7]} 2. c4 {[%clk 0:03:01.1]}
2... c5 {[%clk 0:02:59.9]} 3. d5 {[%clk 0:03:00.5]} 3... b5 {[%clk 0:03:00.1]}
4. cxb5 {[%clk 0:02:59.7]} 4... a6 {[%clk 0:03:00.6]} 5. bxa6 {[%clk 0:03:00.2]}
5... g6 {[%clk 0:03:01]} 6. Nc3 {[%clk 0:03:00.4]} 6... Bxa6 {[%clk 0:03:01.5]}
7. Nf3 {[%clk 0:02:54]} 7... d6 {[%clk 0:03:01.5]} 8. e4 {[%clk 0:02:54]} 8...
Bxf1 {[%clk 0:03:01]} 9. Kxf1 {[%clk 0:02:54.9]} 9... Nbd7 {[%clk 0:02:59.4]}
10. g3 {[%clk 0:02:54.9]} 10... Bg7 {[%clk 0:02:59.9]} 11. Kg2 {[%clk
0:02:54.7]} 11... O-O {[%clk 0:03:00.8]} 12. a4 {[%clk 0:02:54]} 12... Qb8
{[%clk 0:03:00.4]} 13. Qe2 {[%clk 0:02:45]} 13... Qb4 {[%clk 0:02:59.6]} 14. Bd2
{[%clk 0:02:43.9]} 14... Nb6 {[%clk 0:02:56.7]} 15. b3 {[%clk 0:02:36.7]} 15...
Rfb8 {[%clk 0:02:22]} 16. Rab1 {[%clk 0:02:33]} 16... Qa5 {[%clk 0:01:47.1]} 17.
Nb5 {[%clk 0:02:20.1]} 17... Qa6 {[%clk 0:01:47]} 18. Rhe1 {[%clk 0:02:19.1]}
18... Ne8 {[%clk 0:01:28.7]} 19. Bc3 {[%clk 0:01:57.6]} 19... Bxc3 {[%clk
0:01:15.7]} 20. Nxc3 {[%clk 0:01:58.5]} 20... Qxe2 {[%clk 0:00:56.4]} 21. Rxe2
{[%clk 0:01:59.4]} 21... Nc7 {[%clk 0:00:56.3]} 22. Nd2 {[%clk 0:01:43]} 22...
Ra7 {[%clk 0:00:36.5]} 23. f4 {[%clk 0:01:31.9]} 23... f5 {[%clk 0:00:22.3]} 24.
exf5 {[%clk 0:01:25.2]} 24... Nbxd5 {[%clk 0:00:21.9]} 25. Nxd5 {[%clk
0:01:22.8]} 25... Nxd5 {[%clk 0:00:22.8]} 26. fxg6 {[%clk 0:01:12.5]} 26... Nc3
{[%clk 0:00:21.2]} 27. gxh7+ {[%clk 0:01:12.6]} 27... Kxh7 {[%clk 0:00:20.7]}
28. Rbe1 {[%clk 0:01:12.2]} 28... Nxe2 {[%clk 0:00:20.5]} 29. Rxe2 {[%clk
0:01:13.1]} 29... Kg7 {[%clk 0:00:20]} 30. Kf3 {[%clk 0:01:09]} 30... Kf7 {[%clk
0:00:19.5]} 31. h4 {[%clk 0:01:09]} 31... c4 {[%clk 0:00:15.8]} 32. bxc4 {[%clk
0:01:03.5]} 32... Rxa4 {[%clk 0:00:15.9]} 33. h5 {[%clk 0:00:59.1]} 33... Rb2
{[%clk 0:00:13.8]} 34. g4 {[%clk 0:00:52]} 34... Ra3+ {[%clk 0:00:13.3]} 35. Kf2
{[%clk 0:00:51.5]} 35... Raa2 {[%clk 0:00:13.3]} 36. Ke3 {[%clk 0:00:49.8]}
36... Ra3+ {[%clk 0:00:13.4]} 37. Kf2 {[%clk 0:00:49.8]} 37... Raa2 {[%clk
0:00:13.7]} 38. Ke3 {[%clk 0:00:49.9]} 38... Ra3+ {[%clk 0:00:14.1]} 39. Kf2
{[%clk 0:00:50.3]} 1/2-1/2

[Event "Early-Titled-Tuesday-Blitz-June-18-2024"]
[Site "Chess.com"]
[Date "2024.06.18"]
[Round "2"]
[White "Roachelley"]
[Black "Smiechu"]
[Result "1-0"]
[WhiteElo "2546"]
[BlackElo "2355"]
[TimeControl "180+1"]
[EndTime "8:17:37 PDT"]
[Termination "Roachelley won by resignation"]

1. Nf3 {[%clk 0:03:00.9]} 1... d5 {[%clk 0:02:55.1]} 2. e3 {[%clk 0:03:01.1]}
2... Nf6 {[%clk 0:02:54.4]} 3. b3 {[%clk 0:03:00.4]} 3... c6 {[%clk 0:02:52.6]}
4. Bb2 {[%clk 0:03:00.8]} 4... Bg4 {[%clk 0:02:51.1]} 5. Be2 {[%clk 0:03:01.2]}
5... e6 {[%clk 0:02:51.1]} 6. O-O {[%clk 0:03:00.8]} 6... Bd6 {[%clk 0:02:51.1]}
7. d3 {[%clk 0:02:59.9]} 7... Qc7 {[%clk 0:02:50.5]} 8. h3 {[%clk 0:02:59.4]}
8... Bh5 {[%clk 0:02:50.2]} 9. c4 {[%clk 0:02:59.4]} 9... Nbd7 {[%clk
0:02:49.5]} 10. Nbd2 {[%clk 0:02:58.9]} 10... h6 {[%clk 0:02:47.6]} 11. cxd5
{[%clk 0:02:53.1]} 11... exd5 {[%clk 0:02:47]} 12. e4 {[%clk 0:02:52.4]} 12...
dxe4 {[%clk 0:02:41.7]} 13. Nxe4 {[%clk 0:02:43.5]} 13... Nxe4 {[%clk 0:02:41]}
14. dxe4 {[%clk 0:02:44.4]} 14... Bxf3 {[%clk 0:02:40.2]} 15. Bxf3 {[%clk
0:02:44.1]} 15... Be5 {[%clk 0:02:39.8]} 16. Ba3 {[%clk 0:02:02.5]} 16... Bxa1
{[%clk 0:02:36.9]} 17. Bd6 {[%clk 0:02:01.8]} 17... Qb6 {[%clk 0:02:23.6]} 18.
Qxa1 {[%clk 0:02:00.9]} 18... O-O-O {[%clk 0:02:22.4]} 19. Qxg7 {[%clk
0:01:59.8]} 19... f6 {[%clk 0:02:03.2]} 20. Bg4 {[%clk 0:01:54.9]} 20... Rhe8
{[%clk 0:01:50.7]} 21. Bf5 {[%clk 0:01:26.8]} 21... Qd4 {[%clk 0:01:45.3]} 22.
Be7 {[%clk 0:01:19.6]} 22... Rxe7 {[%clk 0:01:25.2]} 23. Qxe7 {[%clk 0:01:20.5]}
23... Qe5 {[%clk 0:01:18.5]} 24. Qxe5 {[%clk 0:01:19.5]} 24... fxe5 {[%clk
0:01:18]} 25. Rd1 {[%clk 0:01:19]} 25... Kc7 {[%clk 0:01:18.4]} 26. Rxd7+ {[%clk
0:01:14.7]} 26... Rxd7 {[%clk 0:01:17.5]} 27. Bxd7 {[%clk 0:01:14.8]} 27... Kxd7
{[%clk 0:01:18.4]} 28. g4 {[%clk 0:01:15.1]} 28... c5 {[%clk 0:01:13.1]} 29. h4
{[%clk 0:01:14.6]} 29... b5 {[%clk 0:01:12.1]} 30. Kf1 {[%clk 0:01:15]} 30...
Ke6 {[%clk 0:01:04.3]} 31. Ke2 {[%clk 0:01:14.7]} 31... Kf6 {[%clk 0:01:03.1]}
32. Ke3 {[%clk 0:01:13.7]} 32... Ke6 {[%clk 0:00:58.1]} 33. f4 {[%clk
0:00:52.2]} 33... exf4+ {[%clk 0:00:57.2]} 34. Kxf4 {[%clk 0:00:53.1]} 34... a5
{[%clk 0:00:56.9]} 35. g5 {[%clk 0:00:46.5]} 35... hxg5+ {[%clk 0:00:56.4]} 36.
hxg5 {[%clk 0:00:46.2]} 36... Kd6 {[%clk 0:00:55.9]} 37. e5+ {[%clk 0:00:28.3]}
37... Kd5 {[%clk 0:00:55.6]} 38. g6 {[%clk 0:00:27.7]} 38... Ke6 {[%clk
0:00:55.7]} 39. Ke4 {[%clk 0:00:27.4]} 39... Ke7 {[%clk 0:00:50]} 40. Kd5 {[%clk
0:00:26.7]} 40... c4 {[%clk 0:00:49.7]} 41. bxc4 {[%clk 0:00:26.4]} 41... b4
{[%clk 0:00:50.2]} 42. Kc5 {[%clk 0:00:25.2]} 42... a4 {[%clk 0:00:50.1]} 43.
Kxb4 {[%clk 0:00:25.3]} 1-0

[Event "Early-Titled-Tuesday-Blitz-June-18-2024"]
[Site "Chess.com"]
[Date "2024.06.18"]
[Round "2"]
[White "GambitGiesbergen"]
[Black "NovakCabarkapa"]
[Result "0-1"]
[WhiteElo "2368"]
[BlackElo "2739"]
[TimeControl "180+1"]
[EndTime "8:17:41 PDT"]
[Termination "NovakCabarkapa won on time"]

1. e4 {[%clk 0:03:00.9]} 1... g6 {[%clk 0:02:55.9]} 2. Nc3 {[%clk 0:02:59.3]}
2... Bg7 {[%clk 0:02:56.2]} 3. d4 {[%clk 0:02:58.9]} 3... c6 {[%clk 0:02:56.7]}
4. Nf3 {[%clk 0:02:53.1]} 4... d5 {[%clk 0:02:56.9]} 5. h3 {[%clk 0:02:53.7]}
5... dxe4 {[%clk 0:02:57.1]} 6. Nxe4 {[%clk 0:02:54.6]} 6... Nf6 {[%clk
0:02:57.7]} 7. Bd3 {[%clk 0:02:52.7]} 7... O-O {[%clk 0:02:57.1]} 8. O-O {[%clk
0:02:52.2]} 8... Nxe4 {[%clk 0:02:56.8]} 9. Bxe4 {[%clk 0:02:53.1]} 9... Nd7
{[%clk 0:02:56.4]} 10. c3 {[%clk 0:02:53.4]} 10... c5 {[%clk 0:02:53.6]} 11. Be3
{[%clk 0:02:46.2]} 11... Nf6 {[%clk 0:02:51.7]} 12. Bc2 {[%clk 0:02:44.5]} 12...
cxd4 {[%clk 0:02:49.2]} 13. Qxd4 {[%clk 0:02:44.1]} 13... Nd5 {[%clk 0:02:45.8]}
14. Qd2 {[%clk 0:02:35.2]} 14... Nxe3 {[%clk 0:02:45.7]} 15. Qxe3 {[%clk
0:02:36.1]} 15... Qc7 {[%clk 0:02:40.6]} 16. Rfe1 {[%clk 0:02:35]} 16... e6
{[%clk 0:02:35.3]} 17. Ng5 {[%clk 0:02:06.5]} 17... a5 {[%clk 0:02:24.8]} 18.
Rad1 {[%clk 0:01:52.8]} 18... a4 {[%clk 0:02:24.2]} 19. a3 {[%clk 0:01:52.6]}
19... Ra5 {[%clk 0:02:23.5]} 20. Ne4 {[%clk 0:01:48.5]} 20... b6 {[%clk
0:02:21.8]} 21. Rd6 {[%clk 0:01:38.5]} 21... Rb5 {[%clk 0:02:15.5]} 22. Bxa4
{[%clk 0:01:38.4]} 22... Rxb2 {[%clk 0:02:15.3]} 23. Red1 {[%clk 0:01:12]} 23...
Qc4 {[%clk 0:01:47]} 24. Bc6 {[%clk 0:00:49.3]} 24... Ba6 {[%clk 0:01:29.1]} 25.
Qf3 {[%clk 0:00:30.4]} 25... Be5 {[%clk 0:01:10.3]} 26. Rd7 {[%clk 0:00:30.6]}
26... Qe2 {[%clk 0:00:45.7]} 27. Qg4 {[%clk 0:00:01.3]} 27... Qxg4 {[%clk
0:00:43.6]} 28. hxg4 {[%clk 0:00:02.2]} 28... Be2 {[%clk 0:00:43.8]} 29. Re1
{[%clk 0:00:01.5]} 29... Bxg4 {[%clk 0:00:43.3]} 30. f3 {[%clk 0:00:01.2]} 30...
Bf5 {[%clk 0:00:42.9]} 31. Nd6 {[%clk 0:00:01.3]} 31... Bxc3 {[%clk 0:00:40.2]}
0-1